Cogmind - Beta 13 @@@ ROGUE MODE // 2024.06.25 @ 15:17:18 // Winter2019/RPGLIKE Player: DeepestRoots Result: Destroyed by Y-45 Defender with Heavy Assault Rifle Performance ------------- Evolutions (1) 500 Regions Visited (3) 600 Robots Destroyed (40) 200 Value Destroyed (666) 666 Prototype IDs (2) 40 Alien Tech Used (0) 0 Bonus (0) 0 TOTAL SCORE: 2006 Bonus ------- None Cogmind --------- Core Integrity 0/600 Matter 167/300 Energy 250/250 System Corruption 0% Temperature Cool (42) Movement Rolling (80) Location -9/Materials Parts ------- > --- POWER (1) -------- Ion Engine > --- PROPULSION (2) --- Wheel Wheel > --- UTILITY (3) ------ Seismic Detector Targeting Computer Medium Armor Plating > --- WEAPON (1) ------- Battle Cannon > --- INVENTORY (1) ---- Rocket Launcher Peak State ------------ > --- POWER ------------ Ion Engine > --- PROPULSION ------- Wheel Wheel > --- UTILITY ---------- Seismic Detector Targeting Computer Medium Armor Plating > --- WEAPON ----------- Battle Cannon > --- INVENTORY -------- Rocket Launcher [Rating: 9] Favorites ----------- Power Ion Engine Engine Ion Engine Propulsion Light Treads Treads Light Treads Leg Aluminum Leg Wheel Wheel Utility Seismic Detector Device Seismic Detector Processor Targeting Computer Protection Light Armor Plating Weapon Light Cannon Ballistic Gun Light Assault Rifle Ballistic Cannon Light Cannon Launcher Rocket Launcher Build | -11 -10 -10 -9 ------- Run | Yrd Mat Min Mat Slots Evolved 3 | 1 2 . . Power . | . . . . Propulsion 1 | 1 . . . Utility 2 | . 2 . . Weapon . | . . . . Parts Attached 20 | 5 9 3 3 Power 1 | 1 . . . Engine 1 | 1 . . . Core . | . . . . Reactor . | . . . . Propulsion 8 | 2 4 2 . Treads 4 | 2 2 . . Leg 2 | . 2 . . Wheel 2 | . . 2 . Hover . | . . . . Flight . | . . . . Utility 6 | 1 4 . 1 Device 2 | 1 1 . . Storage . | . . . . Processor 2 | . 2 . . Hackware . | . . . . Protection 2 | . 1 . 1 Artifact . | . . . . Weapon 5 | 1 1 1 2 Energy Gun . | . . . . Energy Cannon . | . . . . Ballistic Gun 1 | 1 . . . Ballistic Cannon 3 | . 1 1 1 Launcher 1 | . . . 1 Special Weapon . | . . . . Impact Weapon . | . . . . Slashing Weapon . | . . . . Piercing Weapon . | . . . . Special Melee Weapon . | . . . . Unidentified Prototypes . | . . . . Parts Lost . | . . . . Power . | . . . . Propulsion . | . . . . Utility . | . . . . Weapon . | . . . . Highest Loss Streak . | . . . . To Critical Strikes . | . . . . Average Slot Usage (%) 99 | . 99 100 100 Engine 14 | . 14 14 14 Treads 20 | . 16 26 . Leg 6 | . 12 . . Wheel 1 | . . 1 28 Device 14 | . 14 14 14 Processor 19 | . 25 14 14 Protection 6 | . . 14 14 Ballistic Cannon 14 | . 14 14 12 Naked Turns . | . . . . Heaviest Build 16 | 7 12 12 16 Greatest Support 40 | 40 40 20 20 Greatest Overweight (x) 1 | . . 1 . Average Overweight (x) . | . . . . Largest Inventory Capacity 1 | . 1 1 1 Average Capacity . | . . 1 1 Most Carried 1 | . 1 1 1 Average Carried . | . . . 1 Final Capacity 1 | . 1 1 1 Final Carried 1 | . 1 1 1 Class Distribution -------------------- 78% | Mutant 21% | Scavenger-Mutant Dominant Class ---------------- Mutant | -10/Materials Mutant | -10/Mines Mutant | -9/Materials Resources | -11 -10 -10 -9 ----------- Run | Yrd Mat Min Mat Matter Collected 1126 | 214 563 344 5 Remotely . | . . . . Salvage Created 1153 | 18 639 337 159 Parts 57 | 3 27 18 9 Haulers Intercepted 2 | . 2 . . Recyclers Shooed 3 | . 2 1 . Parts Field Recycled . | . . . . Retrieved Matter . | . . . . Parts Self-Destructed . | . . . . Prevented . | . . . . Kills | -11 -10 -10 -9 ------- Run | Yrd Mat Min Mat Combat Hostiles Destroyed 31 | . 10 15 6 Cannons 28 | . 10 15 3 AOE 3 | . . . 3 Classes Destroyed 10 | 1 6 2 1 Worker 5 | . 2 2 1 Builder 2 | . . 1 1 Tunneler 2 | 1 . 1 . Hauler 2 | . 2 . . Recycler 5 | . 3 2 . Watcher 3 | . 3 . . Swarmer 10 | . 3 3 4 Grunt 9 | . 7 2 . Sentry 2 | . . . 2 Assembled 10 | . . 10 . Best Kill Streak 7 | 1 5 6 7 Combat Bots Only 5 | . 3 3 5 Max Kills in Single Turn 4 | 1 1 1 4 Gunslinging . | . . . . Exploded 3 | . . . 3 Melee . | . . . . Uniques/NPCs Destroyed . | . . . . Combat | -11 -10 -10 -9 -------- Run | Yrd Mat Min Mat Hostile Shots Fired 109 | . 44 38 27 Missed 31 | . 10 13 8 Damage Taken 935 | . 418 292 225 Core 696 | . 343 188 165 Absorbed by Shields . | . . . . Redirected to Core 535 | . 248 162 125 Core Remaining (%) 63 | 100 . 27 . Volleys Fired 157 | 6 72 62 17 Largest 1 | 1 1 1 1 Hottest 39 | 20 35 39 39 Shots Fired 157 | 6 72 62 17 Gun 6 | 6 . . . Cannon 148 | . 72 62 14 Launcher 3 | . . . 3 Special . | . . . . Kinetic 154 | 6 72 62 14 Thermal . | . . . . Explosive 3 | . . . 3 Electromagnetic . | . . . . Robot Hit Streak 9 | 3 7 9 6 Robot Miss Streak 3 | 2 2 3 1 Penetration Max . | . . . . Secondary Targets . | . . . . Shots Hit Robots 103 | 4 51 37 11 Core Hits 53 | 2 21 22 8 Critical Kills . | . . . . Critical Parts Destroyed . | . . . . Critical Strikes 8 | . 6 2 . Blast 8 | . 6 2 . Melee Attacks . | . . . . Impact . | . . . . Slashing . | . . . . Piercing . | . . . . Sneak Attacks . | . . . . Combat Hostiles . | . . . . Follow-up Attacks . | . . . . Damage Inflicted 2453 | 32 944 854 623 Guns 32 | 32 . . . Cannons 1977 | . 944 842 191 Explosions 432 | . . . 432 Melee . | . . . . Ramming 12 | . . 12 . Kinetic 2009 | 32 944 842 191 Thermal . | . . . . Explosive 432 | . . . 432 Electromagnetic . | . . . . Impact . | . . . . Slashing . | . . . . Piercing . | . . . . Highest Corruption 1 | . 1 1 . Average Corruption 1 | . 1 1 . Corruption Purged . | . . . . Corruption Blocked . | . . . . Effects 11 | . 5 6 . Message Errors 3 | . . 3 . Matter Fused 2 | . 1 1 . Heat Flow Errors 1 | . . 1 . Energy Discharges 1 | . . 1 . Data Loss (minor) 3 | . 3 . . Data Loss (major) 1 | . 1 . . Overload Shots . | . . . . Overflow Damage 51 | . . 31 20 Projectiles 31 | . . 31 . Explosions 20 | . . . 20 Melee . | . . . . Knockbacks 21 | . 10 11 . Impact . | . . . . Kinetic 20 | . 10 10 . Secondary 1 | . . 1 . Self-Inflicted Damage 19 | . . . 19 Shots 1 | . . . 1 Rammed 3 | . 1 2 . Targets Rammed 3 | . 1 2 . Kicked . | . . . . Crushed . | . . . . Highest Temperature 275 | . 39 275 33 Average Temperature 26 | . 19 31 14 Received Heat Transfer 347 | . 189 122 36 Siege Activations . | . . . . Robots Corrupted . | . . . . Combat Hostiles . | . . . . Parts Fried . | . . . . Impact Corruptions . | . . . . Robots Melted . | . . . . Combat Hostiles . | . . . . Parts Melted . | . . . . Heat Transferred . | . . . . Parts Sabotaged . | . . . . Parts Stolen . | . . . . Parts Stripped . | . . . . Power Chain Reactions . | . . . . Alert | -11 -10 -10 -9 ------- Run | Yrd Mat Min Mat Peak Influence 237 | 5 190 145 237 Initial 8 | . 3 . 8 Average 57 | . 74 37 110 Maximum Alert Level 1 | . . . 1 Low Security (%) 98 | 100 100 100 71 Level 1 1 | . . . 28 Level 2 . | . . . . Level 3 . | . . . . Level 4 . | . . . . Level 5 . | . . . . High Security . | . . . . Max Security . | . . . . Squads Dispatched 3 | . 2 . 1 Investigation 1 | . 1 . . Extermination . | . . . . Reinforcement 2 | . 1 . 1 Assault . | . . . . Garrison . | . . . . Intercept . | . . . . Searches Triggered . | . . . . Construction Impeded . | . . . . Haulers Reinforced . | . . . . Active Scanning Responses . | . . . . Cargo Convoy Interrupts . | . . . . Stealth | -11 -10 -10 -9 --------- Run | Yrd Mat Min Mat Distress Signals 1 | . . . 1 Communications Jammed . | . . . . Distress Signals . | . . . . Times Spotted 46 | . 18 15 13 Peak Tracking Total 7 | . 3 3 7 Tactical Retreats 3 | . 2 1 . Traps | -11 -10 -10 -9 ------- Run | Yrd Mat Min Mat Traps Triggered 2 | . 2 . . Indirectly . | . . . . Trap Hack Attempts . | . . . . Triggered . | . . . . Disarmed . | . . . . Reprogrammed . | . . . . Reused . | . . . . Traps Extracted . | . . . . Installed . | . . . . Triggered . | . . . . Machines | -11 -10 -10 -9 ---------- Run | Yrd Mat Min Mat Machines Disabled 2 | . . 1 1 Max in Single Turn 1 | . . 1 1 Machines Repaired . | . . . . Machines Dismantled . | . . . . Machines Sabotaged . | . . . . Overloaded Fab Kills . | . . . . Hacking | -11 -10 -10 -9 --------- Run | Yrd Mat Min Mat Machines Accessed 8 | . 6 . 2 Terminals 8 | . 6 . 2 Fabricators . | . . . . Repair Stations . | . . . . Recycling Units . | . . . . Scanalyzers . | . . . . Garrison Access . | . . . . Total Hacks 32 | . 21 . 11 Successful 16 | . 12 . 4 Failed 16 | . 9 . 7 Catastrophic 1 | . 1 . . Database Lockouts . | . . . . Manual 18 | . 9 . 9 Terminals 32 | . 21 . 11 Fabricators . | . . . . Repair Stations . | . . . . Recycling Units . | . . . . Scanalyzers . | . . . . Garrison Access . | . . . . Terminal Hacks 11 | . 9 . 2 Robot Analysis 4 | . 4 . . Prototype ID Bank 1 | . 1 . . Unreport Threat 1 | . . . 1 Locate Traps 1 | . 1 . . Dispatch Records 1 | . 1 . . Hauler Manifests 1 | . . . 1 Zone Layout 2 | . 2 . . Fabricator Hacks . | . . . . Repair Station Hacks . | . . . . Recycling Unit Hacks . | . . . . Scanalyzer . | . . . . Garrison Access Hacks . | . . . . Unauthorized Hacks 5 | . 3 . 2 Terminals 5 | . 3 . 2 Assimilate 2 | . 1 . 1 Botnet 3 | . 2 . 1 Fabricators . | . . . . Repair Stations . | . . . . Recycling Units . | . . . . Scanalyzers . | . . . . Garrison Access . | . . . . Data Cores Recovered . | . . . . Used . | . . . . Hacking Detections 8 | . 6 . 2 Full Trace Events 3 | . 2 . 1 Feedback Events . | . . . . Feedback Blocked . | . . . . Robot Schematics Acquired . | . . . . Robots Built . | . . . . Authchips . | . . . . Time . | . . . . Total Robot Build Rating . | . . . . Part Schematics Acquired . | . . . . Parts Built . | . . . . Authchips . | . . . . Time . | . . . . Total Part Build Rating . | . . . . Parts Repaired . | . . . . Time . | . . . . Parts Recycled . | . . . . Recycled Matter . | . . . . Retrieved Matter . | . . . . Retrieved Components . | . . . . Parts Scanalyzed . | . . . . Part Schematics Acquired . | . . . . Parts Damaged . | . . . . Bothacking | -11 -10 -10 -9 ------------ Run | Yrd Mat Min Mat Used RIF Installer . | . . . . Robots Hacked . | . . . . Non-combat . | . . . . Combat . | . . . . Robot Hacks Applied . | . . . . Relay Couplers Released . | . . . . Fabnet Peak Effective % . | . . . . Robots Rewired . | . . . . Allies Hacked . | . . . . Hacks Repelled . | . . . . Allies | -11 -10 -10 -9 -------- Run | Yrd Mat Min Mat Total Allies 1 | . . . 1 Largest Group 1 | . . . 1 Highest-Rated Group 10 | . . . 10 Highest-Rated Ally 10 | . . . 10 Total Orders . | . . . . Ally Attacks . | . . . . Total Damage . | . . . . Kills . | . . . . Allies Corrupted . | . . . . Allies Melted . | . . . . Intel | -11 -10 -10 -9 ------- Run | Yrd Mat Min Mat Robot Analysis Total 4 | . 4 . . Derelict Logs Recovered 2 | . . 2 . Drone Launches . | . . . . Drone Recoveries . | . . . . Exploration | -11 -10 -10 -9 ------------- Run | Yrd Mat Min Mat Turns Passed 2451 | 89 1205 1069 88 Spaces Moved 1415 | 46 714 600 55 Core 2 | 2 . . . Treads 909 | 44 345 520 . Legs 369 | . 369 . . Wheels 135 | . . 80 55 Hover . | . . . . Flight . | . . . . Fastest Speed 50 | 50 120 80 80 Average Speed 141 | 155 139 149 80 Slowest Speed 160 | 160 160 160 80 Overloaded Moves . | . . . . Propulsion Burnouts . | . . . . Robots Hopped . | . . . . Cave-ins Triggered . | . . . . Exploration Rate (%) 52 | 3 99 94 13 Regions Visited 3 Branch Regions 1 Pre-discovered Areas . | . . . . Known Exits Taken . | . . . . Unknown Exits Taken 3 | 1 1 1 . Scrap Searched 1 | . . 1 . Spaces Dug 2 | . . 2 . Terrain Destroyed 30 | . . 6 24 Melee . | . . . . Projectile 6 | . . 6 . AOE 24 | . . . 24 Terrain Rammed . | . . . . Walls Destroyed . | . . . . Machines Disabled . | . . . . Actions | -11 -10 -10 -9 --------- Run | Yrd Mat Min Mat Total 1699 | 56 852 710 81 Wait 85 | . 43 37 5 Move 1412 | 45 713 599 55 Hop . | . . . . Pick Up 4 | . 3 1 . Fast Attach 16 | 5 8 2 1 Attach 1 | . 1 . . Detach . | . . . . Swap 3 | . . 1 2 Drop 13 | . 8 4 1 Fire 157 | 6 72 62 17 Melee . | . . . . Ram . | . . . . Kick . | . . . . Crush 3 | . 1 2 . Escape Stasis . | . . . . Rewire . | . . . . Trap . | . . . . Miscellaneous 5 | . 3 2 . Route ------- -11/Scrapyard -10/Materials (discovered 5 exits: *Mat x3 / [*Min x2]) -10/Mines (discovered 2 exits: *Mat / [*Sub]) -9/Materials History --------- Turn | Location | Event 6 | -11/Scrapyard | Upgraded with Propulsion slot (x1) 9 | -11/Scrapyard | Discovered new exit (range 16) 90 | -11/Scrapyard | Entered Materials 90 | -10/Materials | Upgraded with Utility slot (x1) 298 | -10/Materials | Upgraded with Utility slot (x1) 322 | -10/Materials | Build established: Mutant 390 | -10/Materials | Discovered new exit (range 13) 497 | -10/Materials | Discovered new exit (range 9) 688 | -10/Materials | Build established: Scavenger-Mutant 704 | -10/Materials | Discovered new exit (range 15) 728 | -10/Materials | Core integrity fell below 50% 839 | -10/Materials | Discovered new exit (range 6) 938 | -10/Materials | Discovered new exit (range 11) 1214 | -10/Materials | Build established: Mutant 1295 | -10/Materials | Entered Mines 1297 | -10/Mines | Reached level 2 1433 | -10/Mines | Learned Materials terminal intel 1491 | -10/Mines | A weapon hastily lodged in a ceiling crevice suddenly fell to the ground 1527 | -10/Mines | Discovered new exit (range 10) 1711 | -10/Mines | Assembled infested the area 1893 | -10/Mines | Learned Materials terminal intel 2055 | -10/Mines | Received a Rocket Launcher from a helpful Derelict 2328 | -10/Mines | Discovered new exit (range 10) 2364 | -10/Mines | Entered Materials 2365 | -9/Materials | Loaded intel: 12 terminal locations 2365 | -9/Materials | Core integrity fell below 50% 2366 | -9/Materials | Reached level 3 2403 | -9/Materials | Core integrity fell below 20% 2403 | -9/Materials | Reached level 4 2452 | -9/Materials | Destroyed by Y-45 Defender with Heavy Assault Rifle Last Messages --------------- 3x Cld. Ion Engine A-02 Transporter 6x Imp. EM Shotgun 02427_ W-16 Scout sends out distress signal. 02428_ Technician 2a reports 0b10 security level has risen to 1. 02429_ U-05 Engineer lays Concrete. 02431_ R-06 Scavenger collects Hvy. Assault Rifle. 02431_ U-05 Engineer lays Concrete. 02440_ R-06 Scavenger collects Lgt. Armor Plating. 02441_ Y-45 Defender destroyed. 02442_ K-01 Serf collects debris. 02447_ U-05 Engineer lays Concrete. 02447_ K-01 Serf collects debris. 02448_ U-05 Engineer lays Concrete. 02452_ ALERT: Hostiles spotted, dispatching reinforcements to Terminal M004. 02452_ K-01 Serf collects debris. Map ----- +----------------------------------------------------+ | ?????????????????????????????????????????????????? | | ?????????????????????????????????????????????????? | | ?????????????????????????????????????????????????? | | ?????????????????????????????????????????????????? | | ?????????????????????????????????????????????????? | | ??????????????????###????????????????????????????? | | ???????????????### # ?????????????????????????? | | ??????????????# ???????????????????????? | | ??????????????# % ?????????????????????? | | ??????????????# [/????????????????????? | | ??????????????# [ !%#????????????????????? | | ??????????????# =%#Y !#????????????????????? | | ##+#??????????# ! ! #????????????????????? | | ???#????# !! ? #????????????????????? | | """ #???##%] ?? % #????????????????????? | | """"" ##### # +#?? ###??????????????????? | | """"" # #?# ???????????????????? | | """"" ## "" %[ #?# #????????????????????? | | """ ## "T" %## ### #????????????????????? | | ?#%=% + ] +?????T??????????????? | | ?? ???# %!! # #????????????????????? | | ?###+###??# !! ! % " #????????????????????? | | ## ######## # ## T #############????????? | | k " ??????? | | o w ??????? | | / @ a ??????? | | ## ###############################???????????? | | ?#######?????????????????????????????????????????? | | ?????????????????????????????????????????????????? | | ?????????????????????????????????????????????????? | | ?????????????????????????????????????????????????? | | ?????????????????????????????????????????????????? | | ?????????????????????????????????????????????????? | | ?????????????????????????????????????????????????? | | ?????????????????????????????????????????????????? | | ?????????????????????????????????????????????????? | | ?????????????????????????????????????????????????? | | ?????????????????????????????????????????????????? | | ?????????????????????????????????????????????????? | | ?????????????????????????????????????????????????? | | ?????????????????????????????????????????????????? | | ?????????????????????????????????????????????????? | | | | | | | | | | | | | | | | | +----------------------------------------------------+ Best States ------------- Heat Dissipation 25 Energy Generation 10 Energy Capacity 250 Matter Stores 300 Matter Capacity 300 Sight Range 20 Robot Scan Range 16 Terrain Scan Density 10 Armor Coverage 225 Evasion (%) 55 Targeting Accuracy 5 Recoil Reduction 2 Item Schematics ----------------- None Robot Schematics ------------------ None Fabricated ------------ Nothing Alien Tech Used ----------------- None Achievements -------------- root@ Challenges ------------ None RPGLIKE | -11 -10 -10 -9 --------- Run | Yrd Mat Min Mat Levels Raised 3 | . . 1 2 XP Earned 7905 | 3000 1405 1175 2325 XP Spent 2500 | 500 2000 . . Upgrades 7 | 1 6 . . Propulsion Slot 1 | 1 . . . Utility Slot 2 | . 2 . . Inventory Capacity 1 | . 1 . . Sight Range 2 | . 2 . . Sensor Range 1 | . 1 . . Protomatter Created 67 | . 58 9 . Integrity Restored 93 | . 66 27 . Core 93 | . 66 27 . Protomatter Decayed 59 | . 36 23 . Game ------ Seed LongswordBehemothShotgun Manual? 0 Play Time 00:30:10 Cumulative 10.0 hours Start 2024.06.25 @ 14:26:19 End 2024.06.25 @ 15:17:18 Sessions 1 Manual Loads 0 Difficulty Rogue Special Mode Winter2019/RPGLIKE Game No. 3 Rogue 3 Adventurer 0 Explorer 0 Win Type - Total 1 Types 1/0/0/0/0/0/0/0/0 Lore% 14 Gallery% 17 Achievement% 21 Wizard Run 0 Options --------- Layout 2 ASCII 0 Keyboard 0 Movement Mouse Keybinds 0 Fullscreen 1 Font 48/Terminus Map View 50x44 Zoom Use 0% Tactical HUD 1 Map Filters NONE Filters NONE Steam 0 RUN: 6f8eef87-acb5-454b-a858-ff5db795a136